bitfinex/quotes_ETHUSD_20220112
["timestamp","ask_amount","ask_price","bid_price","bid_amount"]
[1642031439228,1.53299535,3371.1,3371.0,2.50353688]
[1642031439432,1.53299535,3371.1,3371.0,0.30682108]
[1642031439730,1.53299535,3371.1,3371.0,0.00682108]
[1642031439928,1.53299535,3371.1,3371.0,2.41138889]
[1642031440329,1.53299535,3371.1,3371.0,0.00682108]
[1642031440529,1.53299535,3371.1,3371.0,3.6916957]
[1642031441180,1.53299535,3371.1,3371.0,4.6916957]
[1642031441380,1.53299535,3371.1,3371.0,3.41810157]
[1642031441579,1.53299535,3371.1,3371.0,0.00682108]
[1642031442181,1.53299535,3371.1,3370.9,2.44190638]
[1642031442779,1.53299535,3371.1,3370.9,0.00738951]
[1642031444740,1.53299535,3371.1,3370.8,2.88797436]
[1642031445727,1.53299535,3371.1,3370.8,3.62953436]
[1642031445927,1.53299535,3371.1,3370.9,0.3]
[1642031446130,1.53299535,3371.1,3370.9,0.4186]
[1642031446334,1.53299535,3371.1,3370.9,0.1186]
[1642031446531,1.53299535,3371.1,3370.9,0.4186]
[1642031447234,1.53299535,3371.1,3370.9,0.1186]
[1642031447432,1.53299535,3371.1,3370.9,0.4186]
[1642031448480,1.53299535,3371.1,3370.9,0.3]
[1642031448982,1.53299535,3371.1,3370.9,0.726]
[1642031450185,1.53299535,3371.1,3370.9,2.20889]
[1642031450382,1.53299535,3371.1,3371.0,5.49144]
[1642031450884,1.5341322,3371.1,3371.0,6.91744]
[1642031451289,1.5341322,3371.1,3371.0,2.16744]
[1642031451689,1.5341322,3371.1,3371.0,2.28604]
[1642031451888,1.5341322,3371.1,3371.0,1.28604]
[1642031453128,1.5341322,3371.1,3371.0,2.28604]
[1642031453729,1.5341322,3371.1,3371.0,9.13604]
[1642031455128,1.38071899,3371.1,3371.0,2.28604]
[1642031455985,1.38071899,3371.1,3371.0,2.58604]
[1642031457792,1.22583506,3371.1,3371.0,2.58604]
[1642031458594,1.22583506,3371.1,3371.0,2.28604]
[1642031458992,1.22583506,3371.1,3371.0,2.58604]
[1642031459393,1.22583506,3371.1,3371.0,2.28604]
[1642031460427,1.22583506,3371.1,3371.0,7.63604]
[1642031461030,1.48969078,3371.9,3371.4,1.55057566]
[1642031461235,1.48969078,3371.9,3371.6,1.4827]
[1642031461437,0.00397897,3371.8,3371.6,2.4276395]
[1642031461633,0.00397897,3371.8,3371.6,3.7276395]
[1642031461834,0.1186,3372.6,3371.7,1.0979601]
[1642031462036,0.1186,3372.6,3371.7,2.0979601]
[1642031462233,0.00397897,3371.8,3371.7,2.0979601]
[1642031462434,0.00397897,3371.8,3371.7,3.5805701]
[1642031463475,0.00397897,3371.8,3371.7,4.0065701]
[1642031463675,0.00397897,3371.8,3371.7,4.7478701]
[1642031464779,0.00397897,3371.8,3371.7,2.64991]
[1642031465983,0.00397897,3371.8,3371.7,2.94991]
[1642031466983,0.00397897,3371.8,3371.7,3.94991]
[1642031467238,0.00397897,3371.8,3371.7,5.35702068]
[1642031468233,0.00397897,3371.8,3371.7,6.6055775]
[1642031468535,0.00397897,3371.8,3371.7,9.17726319]
[1642031468733,0.00234416,3371.9,3371.8,7.25]
[1642031468934,0.00234416,3371.9,3371.8,12.91528115]
[1642031469132,0.00234416,3371.9,3371.8,13.91528115]
[1642031469333,2.69573623,3373.3,3372.5,1.2599507]
[1642031469533,2.69573623,3373.3,3372.4,1.0376013]
[1642031469534,1.30351394,3373.1,3372.9,0.3]
[1642031469734,1.30351394,3373.1,3372.9,1.58153648]
[1642031469932,0.00795792,3373.2,3372.9,1.58153648]
[1642031470333,0.0073895,3373.1,3372.9,1.58153648]
[1642031470536,0.0073895,3373.1,3373.0,0.74105]
[1642031470736,0.00682108,3373.0,3372.9,1.3375182]
[1642031470981,0.0073895,3373.1,3372.9,1.3375182]
[1642031471186,0.00682108,3373.0,3372.9,1.3375182]
[1642031471688,0.0073895,3373.0,3372.9,1.3375182]
[1642031473295,0.0073895,3373.0,3372.9,1.0375182]
[1642031473491,2.5494249,3373.0,3372.9,1.0375182]
[1642031473692,2.5494249,3373.0,3372.9,1.3375182]
[1642031475424,0.0073895,3373.0,3372.9,1.34233905]
[1642031479080,0.0073895,3373.0,3372.9,1.04233905]
[1642031479280,3.0073895,3373.0,3372.9,1.04233905]
[1642031479480,3.0073895,3373.0,3372.9,1.34233905]
[1642031483427,3.0073895,3373.0,3372.9,2.34233905]
[1642031483630,3.0073895,3373.0,3372.9,1.34233905]
[1642031484237,3.0073895,3373.0,3372.9,0.00482085]
[1642031485035,5.54962001,3373.0,3372.9,0.00482085]
[1642031486097,3.0073895,3373.0,3372.9,0.00482085]
[1642031489300,5.54959971,3373.0,3372.9,0.00482085]
[1642031492829,3.0073895,3373.0,3372.9,0.00482085]
[1642031495090,5.54947312,3373.0,3372.9,0.00482085]
[1642031495896,5.54947312,3373.0,3372.1,0.19071856]
[1642031495897,0.03906882,3372.9,3372.1,0.19071856]
[1642031496098,0.15766882,3372.9,3372.1,0.19071856]
[1642031496295,0.00568423,3372.8,3372.1,0.19071856]
[1642031496698,0.00511581,3372.7,3372.2,0.5188971]
[1642031497096,0.00454738,3372.6,3372.4,1.21314308]
[1642031497332,0.00454738,3372.6,3372.4,1.51314308]
[1642031497533,0.00397896,3372.5,3372.4,1.51314308]
[1642031497731,0.00397896,3372.5,3372.4,1.21314308]
[1642031497931,0.00511581,3372.5,3372.4,1.21314308]
[1642031498132,0.00511581,3372.5,3372.4,1.51314308]
[1642031498332,0.00511581,3372.5,3372.4,3.88806566]
[1642031498532,0.00511581,3372.5,3372.4,4.40691776]
[1642031498933,0.00511581,3372.5,3372.4,2.03199518]
[1642031499935,2.54746674,3372.5,3372.4,2.03199518]
[1642031500335,2.54746674,3372.5,3372.4,1.51314308]
[1642031501486,2.54746674,3372.5,3372.4,0.3]
[1642031502087,2.54746674,3372.5,3372.3,1.04125]
[1642031502490,0.00341054,3372.4,3372.3,1.04125]
[1642031502989,0.00341054,3372.4,3372.3,2.50595897]
[1642031503592,0.00341054,3372.4,3372.3,3.50595897]
[1642031504191,0.00341054,3372.4,3372.3,3.62455897]
[1642031504393,0.00341054,3372.4,3372.3,6.03770814]
[1642031504591,0.00341054,3372.4,3372.3,3.62455897]
[1642031505043,0.00341054,3372.4,3372.3,2.32455897]
[1642031505341,1.15801363,3372.4,3372.3,0.74125]
[1642031506547,1.15801363,3372.4,3372.3,1.04125]
[1642031506749,1.15801363,3372.4,3372.3,2.23656314]
[1642031506750,0.00341054,3372.4,3372.3,2.23656314]
[1642031507152,0.00341054,3372.4,3372.3,4.61507047]
[1642031507351,0.00341054,3372.4,3372.3,2.23656314]
[1642031507751,0.00341054,3372.4,3372.3,4.60638097]
[1642031507950,0.00341054,3372.4,3372.3,2.23656314]
[1642031508349,0.00341054,3372.4,3372.3,1.04125]
[1642031509280,0.00341054,3372.4,3372.3,0.74125]
[1642031509882,0.00341054,3372.4,3372.3,4.54542068]
[1642031510082,0.00341054,3372.4,3372.3,5.54542068]
[1642031511091,0.00341054,3372.4,3372.3,5.66402068]
[1642031511288,0.00341054,3372.4,3372.3,3.28469247]
[1642031511487,0.00341054,3372.4,3372.3,5.64083908]
[1642031511687,0.00341054,3372.4,3372.3,2.28469247]
[1642031512350,0.00341054,3372.4,3372.3,2.16609247]
[1642031513448,0.00341054,3372.4,3372.3,4.53930979]
[1642031513650,0.00341054,3372.4,3372.3,2.16609247]
[1642031514952,0.00341054,3372.4,3372.3,1.86609247]
[1642031515552,0.00341054,3372.4,3372.3,1.04125]
[1642031517392,2.54573213,3372.4,3372.3,1.04125]
[1642031519841,2.84573213,3372.4,3372.3,0.74125]
[1642031520237,2.54573213,3372.4,3372.3,0.74125]
[1642031521044,2.54573213,3372.4,3372.3,0.64125]
[1642031523046,2.54573213,3372.4,3372.3,0.94125]
[1642031524587,2.54573213,3372.4,3372.3,0.3]
[1642031524989,2.54573213,3372.4,3372.2,0.9374461]
[1642031525192,1.55684983,3372.3,3372.2,1.8188461]
[1642031525393,1.55969194,3372.3,3372.2,1.8188461]
[1642031525592,1.55969194,3372.3,3372.2,0.8188461]
[1642031526196,1.55969194,3372.3,3372.2,0.5188461]
[1642031526396,4.10201353,3372.3,3372.2,0.5188461]
[1642031526996,2.5451637,3372.3,3372.2,0.5188461]
[1642031527673,2.5451637,3372.3,3372.2,0.8188461]
[1642031527870,0.00284211,3372.3,3372.2,0.8188461]
[1642031528772,0.00284211,3372.3,3372.2,3.19427837]
[1642031528973,0.00284211,3372.3,3372.2,4.19427837]
[1642031529173,0.00284211,3372.3,3372.2,3.19427837]
[1642031529372,0.00284211,3372.3,3372.2,4.19427837]
[1642031529974,2.4698637,3372.4,3372.2,5.23545837]
[1642031530177,2.4698637,3372.4,3372.3,3.69710393]
[1642031530576,1.52043623,3373.3,3372.3,4.42310393]
[1642031530777,6.0989688,3373.4,3372.5,2.96434]
[1642031530989,5.85083623,3373.4,3373.2,1.49546897]
[1642031531194,1.52043623,3373.4,3373.2,1.49546897]
[1642031531793,1.52043623,3373.4,3373.2,2.91819483]
[1642031531993,0.1186,3373.6,3373.2,2.91819483]
[1642031532394,0.50851748,3373.3,3373.2,2.91819483]
[1642031532897,0.51420172,3373.3,3373.2,2.91819483]
[1642031535046,0.51420172,3373.3,3373.1,0.74109]
[1642031535245,0.51420172,3373.3,3372.8,0.1184]
[1642031535449,0.00511581,3373.2,3372.6,2.0231167]
[1642031535844,0.00454739,3373.1,3372.6,2.5043]
[1642031536245,1.19235136,3372.8,3372.6,2.5043]
[1642031536448,1.19235136,3372.8,3372.6,0.3]
[1642031536645,1.19235136,3372.8,3372.5,2.88662859]
[1642031536846,1.19235136,3372.8,3372.5,0.1184]
[1642031537050,1.19235136,3372.8,3372.4,4.60804]
[1642031537051,1.19235136,3372.8,3372.4,1.48234]
[1642031537249,1.19235136,3372.8,3372.3,0.49063829]
[1642031537644,1.19235136,3372.8,3372.3,0.3]
[1642031537844,0.50851748,3372.7,3372.3,0.3]
[1642031538047,0.50851748,3372.7,3372.2,1.49063829]
[1642031538245,0.00170527,3372.6,3372.2,0.49063829]
[1642031538498,0.00170527,3372.6,3372.3,1.09414408]
[1642031538699,0.00113685,3372.5,3372.3,1.83539408]
[1642031538902,0.00113685,3372.5,3372.3,2.13539408]
[1642031539306,0.50851748,3372.4,3372.3,1.39414408]
[1642031540407,3.50851748,3372.4,3372.3,1.39414408]
[1642031540806,3.0,3372.4,3372.3,1.39414408]
[1642031541008,3.0,3372.4,3372.3,2.13529408]
[1642031544544,3.0,3372.4,3372.3,3.13529408]
[1642031544743,3.0,3372.4,3372.3,2.13529408]
[1642031544946,3.50855029,3372.4,3372.3,3.13529408]
[1642031545145,3.50855029,3372.4,3372.3,3.43529408]
[1642031545544,3.50855029,3372.4,3372.3,8.41129408]
[1642031546797,0.00113685,3372.5,3372.3,8.41129408]
[1642031546995,0.00113685,3372.5,3372.4,2.72342581]
[1642031547197,0.00113685,3372.5,3372.4,4.14942581]
[1642031547397,0.84764902,3373.4,3372.4,4.14942581]
[1642031547600,0.84764902,3373.4,3372.9,0.3]
[1642031547800,0.84764902,3373.4,3373.0,3.61155644]
[1642031547801,0.00454739,3373.3,3373.0,3.61155644]
[1642031548000,0.00454739,3373.3,3373.0,3.91155644]
[1642031548198,0.00397896,3373.2,3373.0,4.17225644]
[1642031548501,0.84764902,3373.4,3373.1,8.4859558]
[1642031548697,0.84764902,3373.4,3373.2,0.426]
[1642031548998,7.499,3373.5,3373.3,2.46650428]
[1642031549199,7.499,3373.5,3373.4,0.426]
[1642031549400,7.499,3373.5,3373.4,0.726]
[1642031549598,7.499,3373.5,3373.4,3.15567485]
[1642031549865,7.499,3373.5,3373.3,1.48184]
[1642031550066,7.499,3373.5,3373.2,0.5186157]
[1642031550267,0.00511581,3373.4,3373.2,0.5186157]
[1642031550765,0.00454739,3373.3,3373.2,0.5186157]
[1642031550969,0.00454739,3373.3,3373.1,0.74089]
[1642031551373,0.00397896,3373.2,3373.1,0.74089]
[1642031551775,0.00454739,3373.2,3373.1,0.74089]
[1642031552173,0.00454739,3373.2,3372.8,2.96414]
[1642031552174,0.00454739,3373.2,3372.8,1.4821]
[1642031552674,0.15147391,3373.1,3372.2,0.5188585]
[1642031552874,0.12181054,3373.1,3372.1,0.3]
[1642031553074,0.00284212,3373.0,3372.3,0.00113685]
[1642031553274,0.1186,3372.9,3372.3,0.00113685]
[1642031553490,0.12087369,3372.9,3372.3,0.00113685]
[1642031553699,0.00170527,3372.8,3372.3,0.00113685]
[1642031554098,0.00113685,3372.7,3372.3,0.00113685]
[1642031554497,0.12087369,3372.9,3372.3,0.00113685]
[1642031554699,1.36184075,3372.8,3372.3,0.00113685]
[1642031554897,1.36354602,3372.8,3372.3,0.00113685]
[1642031555097,0.00113685,3372.7,3372.3,0.00113685]
[1642031555500,0.00113685,3372.7,3372.4,0.74122]
[1642031555701,2.54288096,3372.7,3372.4,0.74122]
[1642031556303,2.54288096,3372.7,3372.4,3.19800808]
[1642031556599,0.00113685,3372.7,3372.4,3.19800808]
[1642031556802,0.00113685,3372.7,3372.5,1.9373834]
[1642031557002,0.00113685,3372.7,3372.6,0.3]
[1642031557840,0.00113685,3372.7,3372.5,1.2599434]
[1642031558441,0.00113685,3372.7,3372.5,0.74116]
[1642031559445,0.00113685,3372.7,3372.5,1.04116]
[1642031560044,0.00113685,3372.7,3372.5,2.04116]
[1642031560244,0.00113685,3372.7,3372.5,1.04116]
[1642031560446,0.00113685,3372.7,3372.4,0.74122]
[1642031560845,0.39426256,3372.6,3372.3,1.48346685]
[1642031561100,0.39426256,3372.6,3372.3,0.00113685]
[1642031562500,0.39426256,3372.6,3372.0,0.00284212]
[1642031562702,0.69426256,3372.6,3372.0,0.00284212]
[1642031562900,2.54216569,3372.5,3372.0,0.00284212]
[1642031563100,2.54216569,3372.5,3371.8,0.00397896]
[1642031563300,2.54216569,3372.5,3371.6,1.74650581]
[1642031563499,2.54216569,3372.5,3371.7,0.00454739]
[1642031563900,2.54216569,3372.5,3371.7,1.26786418]
[1642031563901,1.37809607,3371.8,3371.7,1.26786418]
[1642031564104,1.37809607,3371.8,3371.7,0.00454739]
[1642031564746,1.37809607,3371.8,3371.6,0.00511581]
[1642031565340,1.37809607,3371.8,3371.5,0.00568423]
[1642031567347,0.50873903,3371.7,3371.5,0.00568423]
[1642031568891,0.50873903,3371.7,3371.4,3.62027058]
[1642031569090,0.50873903,3371.7,3371.5,1.0]
[1642031569294,0.50873903,3371.7,3371.4,3.62027058]
[1642031570094,1.32559759,3372.1,3371.4,3.62027058]
[1642031570294,1.32559759,3372.1,3371.6,0.74138]
[1642031570494,0.00284211,3372.0,3371.6,0.74606436]
[1642031570893,0.00227369,3371.9,3371.6,1.48743436]
[1642031571100,0.00227369,3371.9,3371.7,0.1186]
[1642031571297,0.00170527,3371.8,3371.7,0.1186]
[1642031572448,0.00170527,3371.8,3371.7,1.1186]
[1642031572848,0.00170527,3371.8,3371.7,3.56148085]
[1642031574850,0.00170527,3371.8,3371.7,1.1186]
[1642031575452,0.00170527,3371.8,3371.7,0.1186]
[1642031577497,0.00170527,3371.8,3371.7,5.18697202]
[1642031577697,0.00170527,3371.8,3371.7,5.61297202]
[1642031577898,0.00170527,3371.8,3371.7,6.91297202]
[1642031578997,0.00170527,3371.8,3371.7,5.33150728]
[1642031579400,0.00170527,3371.8,3371.7,2.90854]
[1642031579601,0.00170527,3371.8,3371.7,5.3317106]
[1642031580044,0.00170527,3371.8,3371.7,5.6317106]
[1642031580246,0.00170527,3371.8,3371.7,6.92781067]
[1642031580443,0.00170527,3371.8,3371.7,6.93248235]
[1642031582647,0.00170527,3371.8,3371.7,5.63638228]
[1642031582848,0.00170527,3371.8,3371.7,1.91321168]
[1642031583052,0.00170527,3371.8,3371.7,1.48721168]
[1642031583795,1.54354326,3371.8,3371.7,1.48721168]
[1642031583997,1.54354326,3371.8,3371.7,0.00467168]
[1642031585897,0.00170527,3371.8,3371.7,0.00467168]
[1642031586900,1.36121306,3371.8,3371.7,0.00467168]
[1642031587544,1.36121306,3371.8,3371.3,0.5]
[1642031587941,0.00113684,3371.7,3371.3,0.5]
[1642031589245,0.11973684,3371.7,3371.3,1.89858897]
[1642031589446,0.11973684,3371.7,3371.4,0.74145]
[1642031589748,0.00113684,3371.7,3371.4,0.74145]
[1642031589950,0.00113684,3371.7,3371.4,1.74145]
[1642031590244,0.00113684,3371.7,3371.4,0.74145]
[1642031591301,0.00113684,3371.7,3371.3,0.5]
[1642031591302,0.1186,3371.6,3371.3,0.5]
[1642031594001,0.00113684,3371.7,3371.3,0.5]
[1642031594002,2.7849349,3371.7,3371.3,0.5]
[1642031594402,2.78372855,3371.7,3371.3,0.5]
[1642031595445,0.1186,3371.6,3371.3,0.5]
[1642031595645,0.1186,3371.6,3371.4,0.00574871]
[1642031595847,2.66168038,3371.6,3371.4,0.00574871]
[1642031596051,2.66168038,3371.6,3371.4,4.871e-05]
[1642031596253,2.87789451,3371.5,3371.4,4.871e-05]
[1642031596452,0.8955,3371.5,3371.4,4.871e-05]
[1642031597053,3.94746398,3371.5,3371.4,4.871e-05]
[1642031597254,4.83835305,3371.5,3371.4,4.871e-05]
[1642031597656,3.94746398,3371.5,3371.4,4.871e-05]
[1642031598352,6.86826327,3371.5,3371.4,4.871e-05]
[1642031600423,3.82886398,3371.5,3371.4,4.871e-05]
[1642031600619,6.63412406,3371.5,3370.7,1.0179229]
[1642031601025,6.63412406,3371.5,3370.8,0.00397897]
[1642031601426,6.12524046,3371.5,3370.8,0.00397897]
[1642031601826,1.35077564,3371.0,3370.9,1.3550608]
[1642031602244,1.35077564,3371.0,3370.9,1.35847135]
[1642031602645,1.35077564,3371.0,3370.9,1.47707135]
[1642031603847,1.35077564,3371.0,3370.9,0.12201055]
[1642031604851,1.35077564,3371.0,3370.9,0.00341055]
[1642031611849,8.98436379,3371.0,3370.9,0.00341055]
[1642031612051,6.00077564,3371.0,3370.9,0.00341055]
[1642031612450,6.50969718,3371.0,3370.9,0.00341055]
[1642031612849,6.92829718,3371.0,3370.9,0.00341055]
[1642031613252,9.86243237,3371.0,3370.9,0.00341055]
[1642031613796,10.16243237,3371.0,3370.9,0.00341055]
[1642031614195,13.12741563,3371.0,3370.9,0.00341055]
[1642031615296,13.00881563,3371.0,3370.9,0.00341055]
[1642031616302,13.75064563,3371.0,3370.9,0.00341055]
[1642031616704,13.00881563,3371.0,3370.9,0.00341055]
[1642031617564,12.49989409,3371.0,3370.9,0.00341055]
[1642031617764,7.45939409,3371.0,3370.9,0.00341055]
[1642031618063,4.19441083,3371.0,3370.9,0.00341055]
[1642031618467,3.89441083,3371.0,3370.9,0.00341055]
[1642031619166,1.35077564,3371.0,3370.9,0.00341055]
[1642031622801,1.65077564,3371.0,3370.9,0.00341055]
[1642031623301,2.15966404,3371.0,3370.9,0.00341055]
[1642031625548,4.70322829,3371.0,3370.9,0.00341055]
[1642031625950,4.19433989,3371.0,3370.9,0.00341055]
[1642031627252,4.70322096,3371.0,3370.9,0.00341055]
[1642031627851,4.40322096,3371.0,3370.9,0.00341055]
[1642031628253,1.85965671,3371.0,3370.9,0.00341055]
[1642031629697,1.85965671,3371.0,3370.7,1.0179229]
[1642031629698,1.97825671,3371.0,3370.7,1.0179229]
[1642031629896,2.27825671,3371.0,3370.7,1.0179229]
[1642031630099,2.57825671,3371.0,3370.7,1.0179229]
[1642031630295,3.57825671,3371.0,3370.7,1.0179229]
[1642031631402,0.50888107,3370.9,3370.7,1.0179229]
[1642031631601,4.3686,3370.8,3370.7,1.0179229]
[1642031632000,7.2403766,3370.8,3370.7,1.01905974]
[1642031632547,9.78410972,3370.8,3370.7,1.01905974]
[1642031632747,10.29299079,3370.8,3370.7,1.01905974]
[1642031636404,10.17439079,3370.8,3370.7,1.01905974]
[1642031636600,5.92439079,3370.8,3370.7,1.01905974]
[1642031636902,3.05261419,3370.8,3370.7,1.01905974]
[1642031642869,7.9471368,3370.8,3370.7,1.01905974]
[1642031643071,8.2471368,3370.8,3370.7,1.01905974]
[1642031644108,8.3657368,3370.8,3370.7,1.01905974]
[1642031646409,9.14057166,3370.8,3370.7,1.01905974]
[1642031646616,10.98891374,3370.8,3370.7,1.01905974]
[1642031646810,11.28891374,3370.8,3370.7,1.01905974]
[1642031647250,11.28891374,3370.8,3370.7,0.12793181]
[1642031647852,9.14057166,3370.8,3370.7,0.12793181]
[1642031648851,8.84057166,3370.8,3370.7,0.12793181]
[1642031650658,8.72197166,3370.8,3370.7,0.12793181]
[1642031651309,0.74191,3370.6,3369.9,0.1186]
[1642031651608,0.74191,3370.6,3370.0,0.00397897]
[1642031651609,3.58422981,3370.5,3370.0,0.00397897]
[1642031651810,3.58422981,3370.5,3370.1,0.1186]
[1642031652006,4.09311088,3370.5,3370.1,0.1186]
[1642031652206,4.09311088,3370.5,3370.2,0.00284212]
[1642031652408,2.54373312,3370.4,3370.2,0.00284212]
[1642031652607,2.73721214,3370.3,3370.2,0.00284212]
[1642031653310,3.24609321,3370.3,3370.2,0.00284212]
[1642031653709,0.50888107,3370.3,3370.2,0.00284212]
[1642031654210,3.05261419,3370.3,3370.2,0.00284212]
[1642031655654,5.99242194,3370.3,3370.2,0.00284212]
[1642031657563,3.05261419,3370.3,3370.2,0.00284212]
[1642031657965,3.05261419,3370.3,3370.1,0.00341054]
[1642031658808,0.50888107,3370.2,3370.1,0.00341054]
[1642031659406,3.05261419,3370.2,3370.1,0.00341054]
[1642031660609,3.05261419,3370.2,3370.1,0.00887174]
[1642031667806,3.05261419,3370.2,3370.1,0.12747174]
[1642031668006,1.74971419,3370.2,3370.1,5.27168933]
[1642031668307,0.1186,3370.6,3370.1,0.44028933]
[1642031668505,0.1186,3370.6,3370.2,0.86023]
[1642031668707,0.1186,3370.6,3370.2,1.28907212]
[1642031668905,0.1186,3370.6,3370.3,0.0022737]
[1642031669108,0.1186,3370.6,3370.4,0.1186]
[1642031669510,0.1186,3370.6,3370.5,0.00113685]
[1642031669756,0.1186,3370.6,3370.5,0.11973685]
[1642031669960,0.1186,3370.6,3370.5,0.00113685]
[1642031670356,0.1186,3370.6,3370.4,0.00170527]
[1642031670558,0.1186,3370.6,3370.5,0.00497326]
[1642031670958,0.1186,3370.6,3370.5,0.00611011]
[1642031672665,2.1,3370.8,3370.5,0.00611011]
[1642031688262,2.54338983,3370.7,3370.5,0.00611011]
[1642031688518,0.50887115,3370.6,3370.5,0.00611011]
[1642031689711,3.05226098,3370.6,3370.5,0.00611011]
[1642031691321,3.05226098,3370.6,3370.5,0.43211011]
[1642031691519,3.05226098,3370.6,3370.5,3.35644729]
[1642031691716,3.05226098,3370.6,3370.5,4.35644729]
[1642031692354,0.50887115,3370.6,3370.5,1.73211011]
[1642031692555,0.50887115,3370.6,3370.5,4.1341764]
[1642031693156,0.50887115,3370.6,3370.5,1.73211011]
[1642031693358,0.50887115,3370.6,3370.5,2.23211011]
[1642031693855,2.1,3370.8,3370.5,5.4882691]
[1642031693856,0.50887115,3370.7,3370.5,5.4882691]
[1642031694055,0.50887115,3370.7,3370.6,0.1186]
[1642031694255,0.50887115,3370.7,3370.6,0.8446]
[1642031694657,0.50887115,3370.7,3370.6,0.5446]
[1642031695258,0.50887115,3370.7,3370.6,0.426]
[1642031696112,0.50887115,3370.7,3370.6,0.726]
[1642031696912,0.30887115,3370.7,3370.6,0.726]
[1642031697512,0.30887115,3370.7,3370.6,1.026]
[1642031697716,0.30887115,3370.7,3370.6,4.15579436]
[1642031697912,0.30887115,3370.7,3370.6,2.76752]
[1642031700159,0.30887115,3370.7,3370.6,1.16752]
[1642031700556,0.30887115,3370.7,3370.6,1.1725001]
[1642031700756,0.30887115,3370.7,3370.6,0.4309801]
[1642031701163,0.30887115,3370.7,3370.6,0.0049801]
[1642031704106,2.85221742,3370.7,3370.6,0.0049801]
[1642031705005,0.30887115,3370.7,3370.6,0.0049801]
[1642031705506,0.30887115,3370.7,3370.5,1.5]
[1642031705907,0.30887115,3370.7,3370.5,0.5]
[1642031706111,2.85240011,3370.7,3370.5,0.5]
[1642031706912,0.30887115,3370.7,3370.5,0.5]
[1642031707114,0.30887115,3370.7,3370.4,1.0]
[1642031707361,0.42747115,3370.7,3370.3,0.00497249]
[1642031707859,0.42747115,3370.7,3370.6,0.5]
[1642031710263,0.30887115,3370.7,3370.6,0.5]
[1642031710464,0.30887115,3370.7,3370.6,0.50499533]
[1642031715564,0.30887115,3370.7,3370.6,0.5]
[1642031723869,2.85239839,3370.7,3370.6,0.5]
[1642031724470,0.30887115,3370.7,3370.6,0.5]
[1642031725371,2.85239839,3370.7,3370.6,0.5]
[1642031726017,0.30887115,3370.7,3370.6,0.5]
[1642031726918,2.2888276,3370.7,3370.6,0.5]
[1642031727119,2.2888276,3370.7,3370.6,0.6186]
[1642031733386,2.2888276,3370.7,3370.6,0.5]
[1642031734426,2.2888276,3370.7,3370.6,0.6186]
[1642031735826,2.2888276,3370.7,3370.6,0.5]
[1642031744969,1.8388276,3370.7,3370.6,0.5]
[1642031751936,2.1,3370.8,3370.7,5.15]
[1642031752139,2.1,3370.8,3370.7,8.68105864]
[1642031752367,2.1,3370.8,3370.7,6.9946]
[1642031752768,2.60876175,3370.8,3370.7,1.8446]
[1642031753068,2.60876175,3370.8,3370.7,1.3446]
[1642031753866,2.60876175,3370.8,3370.7,1.0446]
[1642031754267,2.60876175,3370.8,3370.7,0.926]
[1642031755268,2.60876175,3370.8,3370.7,3.37644263]
[1642031755470,2.60876175,3370.8,3370.7,4.38163117]
[1642031759425,2.60876175,3370.8,3370.7,1.93118854]
[1642031759626,2.60876175,3370.8,3370.7,0.93118854]
[1642031765823,2.60876175,3370.8,3370.7,0.50518854]
[1642031768068,2.50876175,3370.8,3370.7,0.50518854]
[1642031772523,5.05219402,3370.8,3370.7,0.50518854]
[1642031775671,3.05219402,3370.8,3370.7,0.50518854]
[1642031785178,5.05219402,3370.8,3370.7,0.50518854]
[1642031792382,4.54343227,3370.8,3370.7,0.50518854]
[1642031792978,7.35734895,3370.8,3370.7,0.50518854]
[1642031793847,8.7144949,3370.8,3370.7,0.50518854]
[1642031794647,5.90057822,3370.8,3370.7,0.50518854]
[1642031795250,5.0523348,3370.8,3370.7,0.50518854]
[1642031826931,5.0523348,3370.8,3370.7,2.04591441]
[1642031827131,5.0523348,3370.8,3370.7,6.29021835]
[1642031827377,4.74243922,3370.8,3370.7,6.29021835]
[1642031827983,2.50890253,3370.8,3370.7,6.29021835]
[1642031828383,7.499,3371.3,3370.9,0.74128]
[1642031828583,7.499,3371.3,3371.1,0.77088963]
[1642031828782,7.499,3371.3,3371.2,6.3946]
[1642031829185,7.499,3371.3,3371.2,1.5446]
[1642031829186,8.39441054,3371.3,3371.2,1.5446]
[1642031829483,8.39441054,3371.3,3371.2,4.2946]
[1642031830286,8.39441054,3371.3,3371.2,4.5946]
[1642031830485,8.39441054,3371.3,3371.2,6.88104047]
[1642031831733,8.39441054,3371.3,3371.2,4.13104047]
[1642031831933,8.39441054,3371.3,3371.2,1.54952383]
[1642031832233,8.39441054,3371.3,3371.2,0.54952383]
[1642031834135,9.24238518,3371.3,3371.2,0.54952383]
[1642031835587,9.24238518,3371.3,3371.2,0.426]
[1642031836993,8.39441054,3371.3,3371.2,0.426]
[1642031838531,9.24240131,3371.3,3371.2,0.426]
[1642031841134,9.24240131,3371.3,3371.1,0.74638377]
[1642031841533,0.00284211,3371.2,3371.1,0.74638377]
[1642031842136,0.00284211,3371.2,3371.1,1.74638377]
[1642031842581,0.00284211,3371.2,3371.1,0.74638377]
[1642031842877,0.00284211,3371.2,3371.1,1.74638377]
[1642031843076,0.00284211,3371.2,3371.1,0.74638377]
[1642031843279,0.00284211,3371.2,3371.1,1.74638377]
[1642031843477,0.00284211,3371.2,3371.1,0.74638377]
[1642031844380,0.00284211,3371.2,3371.1,0.00492377]
[1642031845577,0.00284211,3371.2,3370.9,1.2415]
[1642031846040,0.00227369,3371.1,3371.0,5.0]
[1642031847534,0.89427369,3371.1,3371.0,5.0]
[1642031849336,3.43750841,3371.1,3371.0,5.0]
[1642031849538,3.94630372,3371.1,3371.0,5.0]
[1642031850084,1.403069,3371.1,3371.0,5.0]
[1642031850481,1.403069,3371.1,3371.0,6.0]
[1642031851587,1.403069,3371.1,3371.0,8.36883075]
[1642031851788,1.403069,3371.1,3371.0,8.48743075]
[1642031859384,1.403069,3371.1,3371.0,6.1186]
[1642031859584,1.403069,3371.1,3371.0,8.50545719]
[1642031860185,1.403069,3371.1,3371.0,8.93145719]
[1642031861039,1.403069,3371.1,3371.0,9.43145719]
[1642031861442,1.403069,3371.1,3371.0,7.0446]
[1642031862340,1.403069,3371.1,3371.0,6.926]
[1642031862739,1.403069,3371.1,3371.0,9.33062877]
[1642031863741,1.403069,3371.1,3371.0,6.926]
[1642031864043,1.403069,3371.1,3371.0,9.27797217]
[1642031865887,1.403069,3371.1,3371.0,6.926]
[1642031867695,1.403069,3371.1,3371.0,5.5]
[1642031868098,3.94619331,3371.1,3371.0,5.5]
[1642031876336,3.94391962,3371.1,3371.0,5.6186]
[1642031878438,9.54391962,3371.1,3371.0,1.29723639]
[1642031878637,9.54391962,3371.1,3370.3,1.48312]